[Event "44th Chess Olympiad Open 2022"]
[Site "Chennai"]
[Date "2022.07.29"]
[Round "1.9"]
[White "Tagelsir, Abubaker"]
[Black "Bluebaum, Matthias"]
[Result "0-1"]
[WhiteElo "2232"]
[BlackElo "2673"]
[Annotator "TA"]
[PlyCount "92"]
[EventDate "2022.??.??"]
[TimeControl "60"]

{[%evp 22,92,32,25,39,44,43,43,40,39,53,38,54,21,20,0,0,0,0,0,0,0,0,-27,-16,
-15,-17,-30,-26,-19,-4,-7,-2,-64,-67,-97,-57,-62,-58,-50,-57,-43,-46,-60,-27,
-28,-26,-29,-27,-22,-23,-26,-18,-25,-23,-25,-27,-29,-26,-33,-20,-133,-125,-232,
-246,-217,-233,-533,-539,-556,-540,-506,-514]} 1. e4 {[%emt 0:00:37][%cal
Ye2e4,Ye4d5]} c6 {[%emt 0:00:12]} 2. c4 {[%emt 0:00:18]} d5 {[%emt 0:00:00]} 3.
cxd5 {[%emt 0:00:26]} cxd5 {[%emt 0:00:16]} 4. exd5 {[%emt 0:00:12]} Nf6 {
[%emt 0:00:13]} 5. Bb5+ {[%emt 0:00:30]} Nbd7 {[%emt 0:03:15]} 6. Nc3 {[%emt 0:
02:04]} g6 {[%emt 0:06:20]} 7. d4 {[%emt 0:01:40]} Bg7 {[%emt 0:02:18]} 8. d6 {
[%emt 0:01:15]} exd6 {[%emt 0:01:46]} 9. Qe2+ {[%emt 0:00:25]} Qe7 {[%emt 0:00:
42]} 10. Bf4 {[%emt 0:00:07]} Qxe2+ {[%emt 0:07:32]} 11. Bxe2 {[%emt 0:00:11]}
Ke7 {[%emt 0:02:45]} 12. Bf3 {[%emt 0:01:24]} Rd8 $5 {[%emt 0:00:00] [#] An
interesting side line. B14: Caro-Kann: Panov-Botvinnik Attack with 5...e6 and
5...g6.} 13. Rc1 $146 {[%emt 0:06:56]} ({Predecessor:} 13. Nge2 Nb6 14. O-O h6
15. h4 Bg4 16. Bxb7 Rab8 17. Bc6 Rdc8 18. d5 Nc4 19. b3 Nh5 20. Rae1 Nxf4 21.
Nxf4+ {½-½ (57) Moreno Ruiz,J (2459)-Almagro Llamas,P (2453) Madrid 2010})
13... Nb6 {[%emt 0:03:15]} 14. Nge2 {[%emt 0:10:04]} h6 {[%emt 0:00:18] White
is slightly better.} 15. h3 {[%emt 0:01:48]} Rb8 {[%emt 0:00:00]} 16. O-O {
[%emt 0:01:26]} g5 {[%emt 0:04:29]} 17. Bg3 {[%emt 0:05:04]} a6 {[%emt 0:00:14]
} 18. a4 {[%emt 0:05:27]} Kf8 {[%emt 0:09:27]} 19. Rfe1 {[%emt 0:11:44]} Nc4 {
[%emt 0:06:31]} 20. Ne4 {[%emt 0:04:15]} Nxe4 {[%emt 0:00:00]} 21. Bxe4 {
[%emt 0:07:36]} Nxb2 {[%emt 0:00:13]} 22. Rc7 {[%emt 0:03:29] And now Rb1
would win.} (22. Rb1 $5 {[%cal Rb1b2]} Nc4 23. Rb4 $11) 22... Nxa4 {[%emt 0:03:
06]} 23. Bd5 $1 {[%emt 0:00:32]} Be6 {[%emt 0:00:05]} 24. Bxb7 {[%emt 0:00:11]}
Nb6 {[%emt 0:06:20]} 25. Bxa6 {[%emt 0:02:57]} Ra8 {[%emt 0:00:00]} 26. Bb7 {
[%emt 0:00:25]} Ra7 {[%emt 0:02:44] Strongly threatening ...Na8.} 27. Rb1 {
[%emt 0:02:04]} (27. Nc3 $11) 27... Nc4 $15 {[%emt 0:03:21]} 28. Rc6 {[%emt 0:
08:56]} Kg8 {[%emt 0:02:37] Black is more active.} (28... f5 {looks sharper.}
29. Rc7 Na5 30. d5 Bf7) 29. Ra6 {[%emt 0:00:21]} Rxa6 {[%emt 0:00:42]} 30. Bxa6
{[%emt 0:00:06]} Ra8 {[%emt 0:00:52]} 31. Bb7 {[%emt 0:02:23]} Ra2 {[%emt 0:01:
22]} 32. Nc3 {[%emt 0:00:57]} Rc2 {[%emt 0:03:51]} 33. Nb5 {[%emt 0:00:00]} Rd2
{[%emt 0:00:21]} 34. Bxd6 {[%emt 0:08:52]} Nxd6 {[%emt 0:01:42]} 35. Nxd6 {
[%emt 0:02:16]} Bxd4 {[%emt 0:00:05]} 36. Ne4 {[%emt 0:00:14]} Rd3 {[%emt 0:01:
44] With the idea ...f5.} 37. Ba6 {[%emt 0:03:07]} Ra3 {[%emt 0:00:00]} 38. Be2
{[%emt 0:00:33]} Kg7 {[%emt 0:03:34]} 39. Rd1 {[%emt 0:00:26]} Ba7 {[%emt 0:01:
29]} 40. Nd6 {[%emt 0:00:39]} Ra2 {[%emt 0:02:07]} 41. Nb5 {[%emt 0:32:17] [#]}
(41. Kf1 $11) 41... Bb6 $1 $17 {[%emt 0:32:18]} ({Worse is} 41... Rxe2 42. Nxa7
Rb2 43. Nc6 $15) 42. Nc3 {[%emt 0:03:34]} (42. Bf3 $17 {was called for.}) 42...
Rc2 $19 {[%emt 0:00:00]} 43. Na4 {[%emt 0:00:00]} Ba7 {[%emt 0:00:00] This
bishop pair is nice.} ({And not} 43... Rxe2 44. Nxb6 Rc2 45. Nd7 $15) 44. Kf1 {
[%emt 0:00:00]} (44. Bb5 {keeps fighting.}) 44... Bb3 {[%emt 0:00:00] Black is
clearly winning.} 45. g3 {[%emt 0:00:00]} Bxa4 {[%emt 0:00:00]} 46. Ra1 {
[%emt 0:00:00] [#]} Bc6 $1 {[%emt 0:00:00] Weighted Error Value: White=0.27 
(precise) /Black=0.04 (flawless)} 0-1

[Event "44th Chess Olympiad Open 2022"]
[Site "Chennai"]
[Date "2022.07.29"]
[Round "1.9"]
[White "Hamid Mohammed"]
[Black "Nisipeanu, Liviu-Dieter"]
[Result "0-1"]
[WhiteElo "2116"]
[BlackElo "2642"]
[Annotator "ChessBase"]
[PlyCount "45"]
[EventDate "2022.??.??"]
[TimeControl "60"]

1. Nf3 {[%emt 0:00:03]} Nf6 {[%emt 0:00:23]} 2. d4 {[%emt 0:00:24]} d5 {
[%emt 0:00:07]} 3. c4 {[%emt 0:02:26]} e6 {[%emt 0:00:19]} 4. a3 {[%emt 0:00:
00]} dxc4 {[%emt 0:09:03]} 5. Nc3 {[%emt 0:08:21]} a6 {[%emt 0:00:45]} 6. e4 {
[%emt 0:02:56]} b5 {[%emt 0:00:06]} 7. Bg5 {[%emt 0:10:03]} Be7 {[%emt 0:11:40]
} 8. Qc2 {[%emt 0:07:26]} Bb7 {[%emt 0:04:46]} 9. Be2 {[%emt 0:01:01]} Nbd7 {
[%emt 0:05:32]} 10. O-O {[%emt 0:06:00]} h6 {[%emt 0:01:56]} 11. Bh4 {[%emt 0:
00:00]} O-O {[%emt 0:00:46]} 12. Rad1 {[%emt 0:06:21]} Nh5 {[%emt 0:02:01]} 13.
Bg3 {[%emt 0:06:20]} Nxg3 {[%emt 0:04:43]} 14. hxg3 {[%emt 0:00:38]} Nf6 {
[%emt 0:04:22]} 15. Ne5 {[%emt 0:11:05]} c5 {[%emt 0:02:48]} 16. d5 {[%emt 0:
00:00]} Qc7 {[%emt 0:02:59]} 17. Ng4 {[%emt 0:13:00]} exd5 {[%emt 0:00:57]} 18.
Nxf6+ {[%emt 0:00:16]} Bxf6 {[%emt 0:00:03]} 19. Nxd5 {[%emt 0:00:15]} Bxd5 {
[%emt 0:00:05]} 20. Rxd5 {[%emt 0:02:12]} Rad8 {[%emt 0:02:42]} 21. Rfd1 {
[%emt 0:02:15]} Bd4 {[%emt 0:00:00]} 22. Rxd8 {[%emt 0:00:53]} Rxd8 {[%emt 0:
00:00]} 23. Bf3 {[%emt 0:00:00]} 0-1

[Event "44th Chess Olympiad Open 2022"]
[Site "Chennai"]
[Date "2022.07.29"]
[Round "1.10"]
[White "Jones, Gawain C B"]
[Black "Damianou, Ioannis"]
[Result "1-0"]
[WhiteElo "2652"]
[BlackElo "2153"]
[Annotator "TA"]
[PlyCount "37"]
[EventDate "2022.??.??"]
[TimeControl "60"]

{[%evp 9,37,49,162,148,194,195,378,369,372,339,331,335,408,395,383,397,552,559,
590,588,948,877,1584,1211,1375,1326,1251,1205,1264,1140]} 1. c4 {[%emt 0:00:10]
} b6 {[%emt 0:00:37]} 2. Nc3 {[%emt 0:00:19][%cal Yb1c3,Yc3b5,Yb5c7]} Bb7 {
[%emt 0:00:06]} 3. e4 {[%emt 0:00:06][%cal Ye2e4,Ye4e5]} e6 {[%emt 0:00:18]} 4.
Nf3 {[%emt 0:01:14]} Bb4 {[%emt 0:01:01]} 5. Qc2 {[%emt 0:00:00]} c5 {[%emt 0:
12:56] [#]} (5... Ne7 $14) 6. Nb5 $1 $18 {[%emt 0:04:13] [#] And now a3 would
win. A10: English Opening: Unusual Replies for Black.} d5 $146 {[%emt 0:07:25]
[#]} (6... d6 $16) ({Predecessor:} 6... d6 7. a3 Ba5 8. Qd3 Ke7 9. Ng5 Nh6 10.
f4 a6 11. Nc3 Nc6 12. Rb1 Bxc3 13. dxc3 {1-0 (51) Wimmer,A (2105)-Mueller,C 
(2003) Passau 1998}) 7. e5 $1 {[%emt 0:07:58]} Qe7 $2 {[%emt 0:09:58]} (7...
Kf8 8. a3 Ba5) 8. a3 {[%emt 0:04:15] White is winning.} Ba5 {[%emt 0:05:07]} 9.
cxd5 {[%emt 0:00:58]} exd5 {[%emt 0:07:50]} 10. b4 {[%emt 0:00:54]} cxb4 {
[%emt 0:01:47]} 11. Nc7+ {[%emt 0:03:42]} Kd8 {[%emt 0:00:00]} 12. Nxa8 {
[%emt 0:00:08]} Nc6 {[%emt 0:10:04] [#]} 13. Bb2 {[%emt 0:00:00] White is
clearly winning.} Bxa8 {[%emt 0:12:49]} (13... h5 14. Bb5) 14. Bb5 {[%emt 0:03:
15]} Nxe5 {[%emt 0:03:50]} 15. Nxe5 {[%emt 0:04:22] aiming for Rc1.} bxa3 {
[%emt 0:05:08] [#]} 16. Ba6 $1 {[%emt 0:06:10][%csl Ga6][%cal Rc2c8]} Qe6 {
[%emt 0:09:02] [#] Against Qc8+} (16... Bxd2+ 17. Kxd2) 17. Rc1 $1 {[%emt 0:00:
27] White wants to mate with Qc7+.} b5 {[%emt 0:05:59]} 18. Qc8+ {[%emt 0:00:
29]} Ke7 {[%emt 0:00:06]} 19. Bxa3+ {[%emt 0:02:04] Black did not feel at home
in the position after the opening. Weighted Error Value: White=0.06 (flawless)
/Black=0.96} 1-0

[Event "44th Chess Olympiad Open 2022"]
[Site "Chennai"]
[Date "2022.07.29"]
[Round "1.10"]
[White "McShane, Luke J"]
[Black "Michaelides, Konstantinos"]
[Result "1-0"]
[WhiteElo "2649"]
[BlackElo "2300"]
[Annotator "TA"]
[PlyCount "49"]
[EventDate "2022.??.??"]
[TimeControl "60"]

{[%evp 9,49,31,71,73,77,71,94,75,83,87,136,71,77,85,84,54,49,53,63,48,73,53,78,
77,93,86,108,102,102,103,103,84,87,81,131,128,125,108,553,562,641,537]} 1. e4 {
[%emt 0:00:10]} e5 {[%emt 0:00:13]} 2. Nf3 {[%emt 0:00:06]} Nc6 {[%emt 0:00:06]
} 3. Bb5 {[%emt 0:00:04][%cal Yf1b5,Yb5a4,Ya4b3]} a6 {[%emt 0:00:19]} 4. Ba4 {
[%emt 0:00:05]} d6 {[%emt 0:00:35]} 5. O-O {[%emt 0:00:09]} g6 {[%emt 0:01:36]}
6. d4 {[%emt 0:03:29] C72: Ruy Lopez: Deferred Steinitz: 5 0-0.} b5 {[%emt 0:
09:50]} 7. Bb3 {[%emt 0:00:15] dxe5 is the strong threat.} Bg7 {[%emt 0:05:51]
[%cal Rc6d4]} 8. dxe5 {[%emt 0:10:05] White is better.} dxe5 {[%emt 0:05:27]}
9. a4 {[%emt 0:02:33] [#] And now axb5 would win.} Rb8 {[%emt 0:07:09]} (9...
b4 $142) 10. Qxd8+ {[%emt 0:05:10]} (10. axb5 $142 axb5 11. Qd5) 10... Nxd8 $16
{[%emt 0:00:17]} 11. axb5 {[%emt 0:00:05]} axb5 {[%emt 0:01:00]} 12. Be3 {
[%emt 0:00:05]} Be6 {[%emt 0:15:07] [#]} 13. Nbd2 $146 {[%emt 0:00:29]} ({
Predecessor:} 13. Nfd2 Bh6 14. Bxh6 Nxh6 15. Nc3 c6 16. Ra6 Bc8 17. Ra7 O-O 18.
Nf3 Re8 19. Ng5 {0-1 (33) Pogorelskikh,S (1964)-Nebolsina, V (2284) Sochi 2017}
) 13... Ne7 {[%emt 0:02:43]} 14. Ne1 {[%emt 0:02:09]} O-O {[%emt 0:13:58]} 15.
Nd3 {[%emt 0:01:19]} (15. Ra7 $5 {[%cal Ra7c7]}) 15... Bxb3 {[%emt 0:08:27]}
16. Nxb3 {[%emt 0:00:15]} Ndc6 {[%emt 0:06:41]} 17. Ra6 $36 {[%emt 0:00:23]
White is on the roll.} Rfd8 {[%emt 0:04:17]} 18. Rfa1 {[%emt 0:00:36]} f5 {
[%emt 0:02:08]} 19. f3 {[%emt 0:14:42]} Kf7 {[%emt 0:00:00]} 20. Kf1 {[%emt 0:
01:50]} Rd6 {[%emt 0:04:45]} 21. Bc5 {[%emt 0:01:56]} Rd7 {[%emt 0:02:11]} ({
Black should try} 21... Rf6) 22. Ke2 {[%emt 0:01:36]} Nd8 {[%emt 0:04:13]} 23.
Be3 {[%emt 0:04:41] 0x0.0019896bf92bdp-1022s more active pieces.} Ne6 $2 {
[%emt 0:01:24] [#]} (23... Ndc6 $16 {is more resistant.} 24. Bc5 Nd8) 24. Rxe6
$1 $18 {[%emt 0:00:19]} Kxe6 {[%emt 0:02:07]} (24... Rxd3 25. Rxe7+) 25. Ndc5+
{[%emt 0:00:06] Deflection. Weighted Error Value: White=0.09 (flawless) /
Black=0.56} 1-0

[Event "44th Chess Olympiad Open 2022"]
[Site "Chennai"]
[Date "2022.07.29"]
[Round "1.10"]
[White "Isaakidis, Alexandros"]
[Black "Howell, David W L"]
[Result "0-1"]
[WhiteElo "2165"]
[BlackElo "2650"]
[Annotator "TA"]
[PlyCount "43"]
[EventDate "2022.??.??"]
[TimeControl "60"]

{[%evp 16,43,16,0,4,-8,-12,-11,-10,-40,-32,-44,-37,-45,-51,-40,-34,-81,-89,-86,
-81,-87,-80,-130,-82,-118,-119,-120,-117,-104]} 1. d4 {[%emt 0:00:07]} Nf6 {
[%emt 0:01:28]} 2. c4 {[%emt 0:00:10]} e6 {[%emt 0:00:58]} 3. Nf3 {[%emt 0:00:
00]} b6 {[%emt 0:03:58]} 4. g3 {[%emt 0:01:10]} Be7 {[%emt 0:05:33]} 5. Bg2 {
[%emt 0:01:11]} c6 {[%emt 0:01:02]} 6. Nc3 {[%emt 0:03:19]} Ba6 {[%emt 0:10:19]
} 7. Qa4 {[%emt 0:20:35]} O-O {[%emt 0:06:52]} 8. O-O {[%emt 0:01:27]} d5 {
[%emt 0:05:02]} 9. Ne5 {[%emt 0:14:06]} Qe8 {[%emt 0:15:37] E15: Queen's
Indian: 4 g3 sidelines, 4 g3 Ba6 and 4 g3 Bb7 early deviations.} 10. Qc2 {
[%emt 0:26:11]} Nfd7 {[%emt 0:13:17]} 11. Nxd7 {[%emt 0:03:46]} Qxd7 {[%emt 0:
00:00] The position is equal.} 12. b3 {[%emt 0:03:02]} dxc4 {[%emt 0:00:06]}
13. Rd1 {[%emt 0:00:04]} cxb3 {[%emt 0:01:03]} 14. axb3 {[%emt 0:00:35]} Bb7 {
[%emt 0:00:08] [#]} 15. Ne4 $146 {[%emt 0:02:33]} ({Predecessor:} 15. e4 Na6
16. Qe2 Nb4 17. Be3 a5 18. Rd2 b5 19. Qg4 Rfd8 20. e5 Kh8 21. Qf3 Kg8 22. Qg4 {
0-1 (83) Sahl,B (2465)-Olafsson,H (2535) Kopavogur 1994}) 15... h6 {[%emt 0:00:
00]} 16. Bf4 {[%emt 0:06:09]} (16. Bb2 $15 {feels stronger.}) 16... Na6 $17 {
[%emt 0:00:45] Black is better.} 17. Qc1 {[%emt 0:00:31]} Nb4 {[%emt 0:02:36]}
18. Nc3 {[%emt 0:10:57]} Rfd8 {[%emt 0:02:30]} 19. e4 {[%emt 0:00:45]} (19. h4
$142) 19... Qe8 {[%emt 0:01:58]} (19... c5 $142 20. dxc5 Qc6) 20. Na2 {[%emt 0:
00:00]} Rd7 {[%emt 0:03:21]} 21. Nxb4 {[%emt 0:00:03]} Bxb4 {[%emt 0:00:12]}
22. Qc4 {[%emt 0:00:34] Weighted Error Value: White=0.15 (very precise) /
Black=0.04 (flawless)} 0-1

[Event "44th Chess Olympiad Open 2022"]
[Site "Chennai"]
[Date "2022.07.29"]
[Round "1.10"]
[White "Florentiades, Michalis"]
[Black "Haria, Ravi"]
[Result "0-1"]
[WhiteElo "1974"]
[BlackElo "2505"]
[Annotator "ChessBase"]
[PlyCount "104"]
[EventDate "2022.??.??"]
[TimeControl "60"]

1. e4 {[%emt 0:00:10]} e6 {[%emt 0:00:17]} 2. d4 {[%emt 0:00:09]} d5 {[%emt 0:
00:00]} 3. exd5 {[%emt 0:00:17]} exd5 {[%emt 0:00:11]} 4. Nf3 {[%emt 0:00:11]}
Bd6 {[%emt 0:02:43]} 5. c4 {[%emt 0:00:46]} Nf6 {[%emt 0:00:26]} 6. Nc3 {
[%emt 0:00:41]} O-O {[%emt 0:00:06]} 7. cxd5 {[%emt 0:01:20]} Nbd7 {[%emt 0:00:
00]} 8. Bg5 {[%emt 0:01:36]} h6 {[%emt 0:04:27]} 9. Bh4 {[%emt 0:02:07]} Nb6 {
[%emt 0:05:56]} 10. Be2 {[%emt 0:07:09]} Be7 {[%emt 0:08:46]} 11. Bxf6 {
[%emt 0:07:27]} Bxf6 {[%emt 0:02:17]} 12. Qb3 {[%emt 0:03:06]} Bg4 {[%emt 0:00:
00]} 13. O-O {[%emt 0:05:08]} Rb8 {[%emt 0:02:35]} 14. Rfe1 {[%emt 0:06:43]}
Bxf3 {[%emt 0:28:51]} 15. Bxf3 {[%emt 0:00:22]} Bxd4 {[%emt 0:02:02]} 16. Rad1
{[%emt 0:10:20]} Bc5 {[%emt 0:00:46]} 17. Ne4 {[%emt 0:05:36]} Bd6 {[%emt 0:00:
00]} 18. Nc3 {[%emt 0:06:41]} Nd7 {[%emt 0:04:40]} 19. Be4 {[%emt 0:05:08]} Ne5
{[%emt 0:03:14]} 20. Nb5 {[%emt 0:01:36]} a6 {[%emt 0:04:28]} 21. Nxd6 {
[%emt 0:00:34]} cxd6 {[%emt 0:00:21]} 22. Bb1 {[%emt 0:02:16]} b5 {[%emt 0:00:
00]} 23. Rc1 {[%emt 0:02:29]} Qb6 {[%emt 0:05:27]} 24. Qe3 {[%emt 0:04:27]} Qb7
{[%emt 0:01:31]} 25. f4 {[%emt 0:01:45]} Ng4 {[%emt 0:02:09]} 26. Qd4 {[%emt 0:
00:00]} Rfe8 {[%emt 0:01:09]} 27. Be4 {[%emt 0:03:04]} Rbc8 {[%emt 0:02:18]}
28. Bf3 {[%emt 0:02:29]} Rxe1+ {[%emt 0:00:31]} 29. Rxe1 {[%emt 0:00:08]} Nf6 {
[%emt 0:00:06]} 30. h3 {[%emt 0:03:41]} Rc4 {[%emt 0:01:35]} 31. Qd2 {[%emt 0:
00:00]} Qc7 {[%emt 0:00:49]} 32. Re2 {[%emt 0:03:46]} g6 {[%emt 0:01:33]} 33.
Kh2 {[%emt 0:01:02]} Kg7 {[%emt 0:01:32]} 34. b3 {[%emt 0:01:31]} Rc3 {[%emt 0:
00:00]} 35. Qd4 {[%emt 0:01:30]} Qc5 {[%emt 0:01:46]} 36. Qxc5 {[%emt 0:00:52]}
Rxc5 {[%emt 0:00:26]} 37. Rd2 {[%emt 0:00:03]} a5 {[%emt 0:02:33]} 38. Kg3 {
[%emt 0:03:27]} Rc3 {[%emt 0:00:20]} 39. Kf2 {[%emt 0:00:22]} Nd7 {[%emt 0:00:
00]} 40. Ke2 {[%emt 0:03:20]} Nc5 {[%emt 0:00:27]} 41. Kd1 {[%emt 0:33:18]} Nd3
{[%emt 0:03:59]} 42. Rc2 {[%emt 0:00:00]} Rxc2 {[%emt 0:05:26]} 43. Kxc2 {
[%emt 0:00:00]} Nxf4 {[%emt 0:06:33]} 44. Kc3 {[%emt 0:00:00]} f5 {[%emt 0:00:
00]} 45. a4 {[%emt 0:00:00]} bxa4 {[%emt 0:00:30]} 46. bxa4 {[%emt 0:00:00]} g5
{[%emt 0:00:45]} 47. Kc4 {[%emt 0:00:00]} h5 {[%emt 0:01:20]} 48. g4 {[%emt 0:
00:00]} Nxh3 {[%emt 0:00:47]} 49. gxh5 {[%emt 0:00:00]} g4 {[%emt 0:00:21]} 50.
Bd1 {[%emt 0:00:00]} Nf2 {[%emt 0:00:27]} 51. Be2 {[%emt 0:00:00]} f4 {[%emt 0:
00:00]} 52. Kd4 {[%emt 0:00:00]} Kh6 {[%emt 0:00:13]} 0-1

[Event "44th Chess Olympiad Open 2022"]
[Site "Chennai"]
[Date "2022.07.29"]
[Round "1.11"]
[White "Nihal Sarin"]
[Black "Sultan, Ibrahim"]
[Result "1-0"]
[WhiteElo "2651"]
[BlackElo "2108"]
[Annotator "TA"]
[PlyCount "109"]
[EventDate "2022.??.??"]
[TimeControl "60"]

{[%evp 13,109,17,16,0,16,11,18,16,31,10,11,26,29,29,36,38,43,15,34,31,26,25,62,
0,0,0,0,0,0,0,0,0,0,0,0,0,0,0,0,0,0,0,0,0,0,0,10,0,0,0,0,0,7,12,356,336,334,
343,336,309,299,0,0,0,0,0,0,0,0,0,0,0,0,0,22,22,22,26,36,7,0,0,0,0,0,0,4,3,60,
0,191,206,184,193,197,191,111,112]} 1. e4 {[%emt 0:00:28]} e5 {[%emt 0:00:14]}
2. Nf3 {[%emt 0:00:10]} Nc6 {[%emt 0:00:07]} 3. Bb5 {[%emt 0:00:34]} a6 {
[%emt 0:00:08]} 4. Ba4 {[%emt 0:00:26]} Nf6 {[%emt 0:00:11]} 5. O-O {[%emt 0:
00:00]} Be7 {[%emt 0:00:42]} 6. d3 {[%emt 0:00:25]} b5 {[%emt 0:00:14]} 7. Bb3
{[%emt 0:00:08]} d6 {[%emt 0:01:34]} 8. Bd2 {[%emt 0:00:10] C84: Closed Ruy
Lopez: Unusual White 6th moves.} O-O {[%emt 0:07:42]} 9. h3 {[%emt 0:00:15]}
Re8 {[%emt 0:15:24]} 10. Re1 {[%emt 0:01:52] The position is equal.} Bf8 {
[%emt 0:03:12]} 11. a3 {[%emt 0:07:42]} h6 {[%emt 0:05:09]} 12. Nc3 {[%emt 0:
00:00]} Na5 {[%emt 0:05:01]} 13. Ba2 {[%emt 0:00:18] [#]} c6 $146 {[%emt 0:00:
00]} ({Predecessor:} 13... Be6 14. Bxe6 Rxe6 15. Nd5 Nb7 16. c4 c6 17. Nxf6+
Rxf6 18. b4 Qd7 19. a4 bxc4 20. dxc4 {1-0 (38) Leko,P (2670)-Nihal,S (2610)
Douglas 2019}) 14. b4 {[%emt 0:04:00]} Nb7 {[%emt 0:00:05]} 15. Ne2 {[%emt 0:
00:00]} Be6 {[%emt 0:07:05]} 16. Bxe6 {[%emt 0:02:14]} Rxe6 {[%emt 0:00:05]}
17. Ng3 {[%emt 0:00:08]} d5 {[%emt 0:04:54]} 18. exd5 {[%emt 0:01:36]} (18. a4
$14) 18... Qxd5 $11 {[%emt 0:00:05]} 19. Qe2 {[%emt 0:00:19]} Rae8 {[%emt 0:00:
00]} 20. c4 {[%emt 0:00:22]} Qd7 {[%emt 0:07:28]} 21. Bc3 {[%emt 0:21:53][%cal
Rc3e5]} e4 $1 {[%emt 0:01:26]} 22. dxe4 {[%emt 0:00:29]} Nxe4 {[%emt 0:00:22]}
23. Nxe4 {[%emt 0:00:05]} Rxe4 {[%emt 0:00:04]} 24. Qxe4 {[%emt 0:00:06]} Rxe4
{[%emt 0:00:05]} 25. Rxe4 {[%emt 0:00:06]} Qd3 {[%emt 0:02:59][%csl Yc3,Yc4,
Ye4]} 26. Re3 {[%emt 0:00:05][%cal Ye4e3,Ye3c3,Yc3c1,Yc1e1]} Qxc4 {[%emt 0:00:
08]} 27. Rd1 {[%emt 0:00:04] aiming for Rd7.} Nd6 {[%emt 0:04:10]} 28. Be5 {
[%emt 0:04:48]} Nf5 {[%emt 0:02:40]} 29. Rc3 $36 {[%emt 0:01:06] White has
some pressure.} Qe4 {[%emt 0:05:13]} 30. Rd8 {[%emt 0:18:42]} f6 {[%emt 0:00:
50]} 31. Bb8 {[%emt 0:05:41] next Rc1 is good for White.} h5 {[%emt 0:05:01]}
32. Rc1 {[%emt 0:02:48] Strongly threatening Re1.} Kf7 {[%emt 0:04:52]} 33.
Rd7+ {[%emt 0:03:38]} Kg8 $2 {[%emt 0:04:09]} (33... Kg6 $1 $11 {and Black is
okay.}) 34. Re1 $1 $18 {[%emt 0:00:56]} Qc4 {[%emt 0:01:20]} 35. Re8 $1 {
[%emt 0:20:25]} Qc1+ {[%emt 0:00:09] [#]} 36. Kh2 $1 {[%emt 0:00:03]} Qxa3 {
[%emt 0:00:16] [#]} 37. Rdd8 $2 {[%emt 0:00:11]} ({White has to play} 37. Ne1
$1 $18) 37... Qxb4 $11 {[%emt 0:00:20]} 38. Rxf8+ {[%emt 0:00:04]} Qxf8 {
[%emt 0:00:06]} 39. Rxf8+ {[%emt 0:00:03]} Kxf8 {[%emt 0:00:00]} 40. g4 {
[%emt 0:00:02]} hxg4 {[%emt 0:00:18]} 41. hxg4 {[%emt 0:30:07]} Ne7 {[%emt 0:
09:17] White must now prevent ...Kf7.} 42. Nd4 {[%emt 0:00:00]} Ke8 {[%emt 0:
05:34] And now ...c5 would win.} 43. Nb3 {[%emt 0:00:00]} c5 {[%emt 0:12:23]}
44. Nxc5 {[%emt 0:00:00]} a5 {[%emt 0:00:05][%cal Ya6a5,Ya5a4,Ya4a3,Ya3a2]} 45.
Kg3 {[%emt 0:13:11]} Nc6 {[%emt 0:05:03]} 46. Bc7 {[%emt 0:00:00]} a4 {[%emt 0:
02:08]} 47. Kf4 {[%emt 0:02:05]} (47. Kf3 $5 {[%cal Rf3e4]}) 47... a3 {[%emt 0:
00:23]} 48. Ke4 {[%emt 0:00:05] Inhibits Nd4.} a2 {[%emt 0:01:23]} 49. Nb3 {
[%emt 0:00:08]} g6 {[%emt 0:04:34]} 50. Bb6 {[%emt 0:02:08]} Kd7 {[%emt 0:00:
49]} 51. f4 {[%emt 0:01:43]} ({Better is} 51. Kd3 $14) 51... Nb4 $2 {[%emt 0:
00:36]} (51... Ke6 $11 {and Black stays safe.}) 52. Bd4 {[%emt 0:00:24]} Ke6 {
[%emt 0:00:30]} 53. f5+ {[%emt 0:00:30]} gxf5+ {[%emt 0:00:13]} 54. gxf5+ {
[%emt 0:00:05]} Kf7 {[%emt 0:00:43]} 55. Nc1 {[%emt 0:00:07] Weighted Error
Value: White=0.13 (very precise) /Black=0.26 (precise)} 1-0